fUSD/lending_fUSD_20241206
["ID","MTS","AMOUNT","RATE_DAILY","PERIOD"]
[344507315,1733520674131,-641.85,9.589e-05,2]
[344507316,1733520674140,-873.62,9.589e-05,2]
[344507317,1733520674150,-1938.03,9.589e-05,2]
[344507318,1733520674159,-641.85,9.589e-05,2]
[344507319,1733520674169,-873.62,9.589e-05,2]
[344507320,1733520674179,-1938.03,9.589e-05,2]
[344507321,1733520674189,-641.85,9.589e-05,2]
[344507322,1733520674199,-500.0,9.589e-05,2]
[344507323,1733520674208,-1938.03,9.589e-05,2]
[344507324,1733520674218,-873.62,9.589e-05,2]
[344507325,1733520674228,-1938.03,9.589e-05,2]
[344507326,1733520674238,-641.85,9.589e-05,2]
[344507327,1733520674251,-873.62,9.589e-05,2]
[344507328,1733520674266,-1938.03,9.589e-05,2]
[344507329,1733520674276,-500.0,9.589e-05,2]
[344507330,1733520674286,-828.15,9.589e-05,2]
[344507331,1733520674295,-973.75,9.589e-05,2]
[344507332,1733520674305,-641.85,9.589e-05,2]
[344507333,1733520674317,-873.62,9.589e-05,2]
[344507334,1733520674327,-1938.03,9.589e-05,2]
[344507335,1733520674338,-296.76211154,9.589e-05,2]
[344507336,1733520674348,-828.15,9.589e-05,2]
[344507337,1733520674357,-973.75,9.589e-05,2]
[344507338,1733520674367,-873.62,9.589e-05,2]
[344507339,1733520674377,-828.15,9.589e-05,2]
[344507340,1733520674387,-1938.03,9.589e-05,2]
[344507341,1733520674396,-973.75,9.589e-05,2]
[344507342,1733520674406,-873.62,9.589e-05,2]
[344507343,1733520674415,-828.15,9.589e-05,2]
[344507344,1733520674425,-973.75,9.589e-05,2]
[344507345,1733520674435,-641.85,9.589e-05,2]
[344507346,1733520674444,-873.62,9.589e-05,2]
[344507347,1733520674454,-1938.03,9.589e-05,2]
[344507348,1733520674463,-828.15,9.589e-05,2]
[344507349,1733520674473,-973.75,9.589e-05,2]
[344507350,1733520674482,-873.62,9.589e-05,2]
[344507351,1733520674492,-641.85,9.589e-05,2]
[344507352,1733520674501,-1938.03,9.589e-05,2]
[344507353,1733520674511,-973.75,9.589e-05,2]
[344507354,1733520674520,-873.62,9.589e-05,2]
[344507355,1733520674529,-641.85,9.589e-05,2]
[344507356,1733520674538,-1938.03,9.589e-05,2]
[344507357,1733520674548,-828.15,9.589e-05,2]
[344507358,1733520674558,-973.75,9.589e-05,2]
[344507359,1733520674568,-873.62,9.589e-05,2]
[344507360,1733520674578,-1938.03,9.589e-05,2]
[344507361,1733520674588,-828.15,9.589e-05,2]
[344507362,1733520674597,-873.72677413,9.589e-05,2]
[344507363,1733520674607,-641.85,9.589e-05,2]
[344507364,1733520674616,-973.75,9.589e-05,2]
[344507365,1733520674628,-1938.03,9.589e-05,2]
[344507366,1733520674638,-828.15,9.589e-05,2]
[344507367,1733520674648,-641.85,9.589e-05,2]
[344507368,1733520674657,-500.0,9.589e-05,2]
[344507369,1733520674667,-1938.03,9.589e-05,2]
[344507370,1733520674677,-973.75,9.589e-05,2]
[344507371,1733520674687,-828.15,9.589e-05,2]
[344507372,1733520674696,-641.85,9.589e-05,2]
[344507373,1733520674706,-973.75,9.589e-05,2]
[344507374,1733520674716,-1938.03,9.589e-05,2]
[344507375,1733520674726,-500.0,9.589e-05,2]
[344507376,1733520674735,-641.93,9.589e-05,2]
[344507377,1733520674746,-828.15,9.589e-05,2]
[344507378,1733520674758,-973.75,9.589e-05,2]
[344507379,1733520674767,-1938.03,9.589e-05,2]
[344507380,1733520674777,-500.0,9.589e-05,2]
[344507381,1733520674789,-828.15,9.589e-05,2]
[344507382,1733520674799,-1938.03,9.589e-05,2]
[344507383,1733520674809,-973.75,9.589e-05,2]
[344507384,1733520674820,-500.0,9.589e-05,2]
[344507385,1733520674829,-828.15,9.589e-05,2]
[344507386,1733520674839,-1938.03,9.589e-05,2]
[344507387,1733520674849,-973.75,9.589e-05,2]
[344507388,1733520674860,-500.0,9.589e-05,2]
[344507389,1733520674870,-828.15,9.589e-05,2]
[344507390,1733520674880,-1938.03,9.589e-05,2]
[344507391,1733520674889,-973.75,9.589e-05,2]
[344507392,1733520674899,-500.0,9.589e-05,2]
[344507393,1733520674908,-828.15,9.589e-05,2]
[344507394,1733520674918,-1938.03,9.589e-05,2]
[344507395,1733520674927,-973.75,9.589e-05,2]
[344507396,1733520674937,-500.0,9.589e-05,2]
[344507397,1733520674946,-1938.03,9.589e-05,2]
[344507398,1733520674956,-828.15,9.589e-05,2]
[344507399,1733520674965,-973.75,9.589e-05,2]
[344507400,1733520674975,-828.15,9.589e-05,2]
[344507401,1733520674985,-500.0,9.589e-05,2]
[344507402,1733520674995,-973.75,9.589e-05,2]
[344507403,1733520675004,-1938.03,9.589e-05,2]
[344507404,1733520675014,-828.15,9.589e-05,2]
[344507405,1733520675024,-973.75,9.589e-05,2]
[344507406,1733520675034,-1503.67,9.589e-05,2]
[344507407,1733520675044,-1938.03,9.589e-05,2]
[344507408,1733520675053,-973.75,9.589e-05,2]
[344507409,1733520675064,-828.15,9.589e-05,2]
[344507410,1733520675075,-500.0,9.589e-05,2]
[344507411,1733520675084,-1503.67,9.589e-05,2]
[344507412,1733520675094,-1938.03,9.589e-05,2]
[344507413,1733520675104,-973.75,9.589e-05,2]
[344507414,1733520675113,-828.15,9.589e-05,2]
[344507415,1733520675123,-1503.67,9.589e-05,2]
[344507416,1733520675132,-1938.09659682,9.589e-05,2]
[344507417,1733520675142,-973.75,9.589e-05,2]
[344507418,1733520675152,-828.15,9.589e-05,2]
[344507419,1733520675162,-500.0,9.589e-05,2]
[344507420,1733520675172,-1503.67,9.589e-05,2]
[344507421,1733520675182,-973.75,9.589e-05,2]
[344507422,1733520675193,-500.0,9.589e-05,2]
[344507423,1733520675203,-828.15,9.589e-05,2]
[344507424,1733520675214,-1503.67,9.589e-05,2]
[344507425,1733520675225,-973.75,9.589e-05,2]
[344507426,1733520675235,-828.15,9.589e-05,2]
[344507427,1733520675245,-500.0,9.589e-05,2]
[344507428,1733520675258,-973.82,9.589e-05,2]
[344507429,1733520675268,-1503.67,9.589e-05,2]
[344507430,1733520675278,-500.0,9.589e-05,2]
[344507431,1733520675288,-828.15,9.589e-05,2]
[344507432,1733520675299,-1503.67,9.589e-05,2]
[344507433,1733520675310,-828.35347479,9.589e-05,2]
[344507434,1733520675320,-500.0,9.589e-05,2]
[344507435,1733520675334,-1503.67,9.589e-05,2]
[344507436,1733520675344,-500.0,9.589e-05,2]
[344507437,1733520675353,-1503.67,9.589e-05,2]
[344507438,1733520675364,-500.0,9.589e-05,2]
[344507439,1733520675376,-2516.81,9.589e-05,2]
[344507440,1733520675386,-1503.67,9.589e-05,2]
[344507441,1733520675396,-500.0,9.589e-05,2]
[344507442,1733520675406,-2516.81,9.589e-05,2]
[344507443,1733520675419,-1503.67,9.589e-05,2]
[344507444,1733520675429,-500.0,9.589e-05,2]
[344507445,1733520675439,-2516.81,9.589e-05,2]
[344507446,1733520675449,-1503.67,9.589e-05,2]
[344507447,1733520675459,-500.0,9.589e-05,2]
[344507448,1733520675469,-2516.81,9.589e-05,2]
[344507449,1733520675479,-1503.67,9.589e-05,2]
[344507450,1733520675489,-576.0,9.589e-05,2]
[344507451,1733520675499,-2516.81,9.589e-05,2]
[344507452,1733520675509,-1503.67,9.589e-05,2]
[344507453,1733520675520,-1283.58,9.589e-05,2]
[344507454,1733520675530,-451.10195131,9.589e-05,2]
[344507455,1733520681679,-1342664.59939433,0.0002,120]
[344507458,1733521334671,-970.02,0.00016658,30]
[344507459,1733521334706,-970.02,0.00019242,30]
[344507460,1733521334732,-1000.0,0.0002,30]
[344507462,1733521693453,873.01,0.00016658,30]
[344507463,1733521693742,873.01,0.00019242,30]
[344507477,1733521831822,-200.0,7.679e-05,2]
[344507478,1733521831832,-200.0,7.682e-05,2]
[344507479,1733521831842,-200.0,7.682e-05,2]
[344507480,1733521831851,-200.0,7.691e-05,2]
[344507481,1733521831862,-150.0,7.982e-05,2]
[344507482,1733521831871,-993.96896607,7.985e-05,2]
[344507483,1733521831883,-711.48103393,7.985e-05,2]
[344507484,1733521831892,-352.19,7.998e-05,2]
[344507485,1733521831901,-988.02,8.019e-05,2]
[344507486,1733521831911,-250.0,8.041e-05,2]
[344507487,1733521831920,-250.0,8.062e-05,2]
[344507488,1733521831930,-1073.43,8.089e-05,2]
[344507489,1733521831940,-1050.0,8.089e-05,2]
[344507490,1733521831949,-1056.98377968,8.089e-05,2]
[344507491,1733521831958,-250.0,8.19e-05,2]
[344507492,1733521831967,-150.0,8.192e-05,2]
[344507493,1733521831976,-495.62,8.205e-05,2]
[344507494,1733521831986,-150.0,8.218e-05,2]
[344507495,1733521831995,-490.09,8.218e-05,2]
[344507496,1733521832004,-490.01,8.218e-05,2]
[344507497,1733521832014,-509.47,8.218e-05,2]
[344507498,1733521832023,-491.3,8.218e-05,2]
[344507499,1733521832033,-500.09,8.218e-05,2]
[344507500,1733521832043,-498.64,8.218e-05,2]
[344507501,1733521832052,-150.99,8.218e-05,2]
[344507502,1733521832062,-150.99,8.218e-05,2]
[344507503,1733521832072,-299.99,8.218e-05,2]
[344507505,1733521832081,-4842.55,8.218e-05,2]
[344507507,1733521832090,-495.75,8.218e-05,2]
[344507509,1733521832099,-494.48,8.219e-05,2]
[344507510,1733521832109,-495.44,8.219e-05,2]
[344507511,1733521832118,-1000.0,8.219e-05,2]
[344507512,1733521832128,-5220.89,8.219e-05,2]
[344507513,1733521832137,-3264.03,8.219e-05,2]
[344507514,1733521832147,-493.71,8.219e-05,2]
[344507515,1733521832156,-499.15,8.219e-05,2]
[344507516,1733521832166,-504.59,8.219e-05,2]
[344507518,1733521832175,-169.49,8.361e-05,2]
[344507519,1733521832185,-441.72,8.463e-05,2]
[344507520,1733521832195,-509.92,8.579e-05,2]
[344507521,1733521832204,-502.92,8.579e-05,2]
[344507522,1733521832214,-496.81,8.667e-05,2]
[344507523,1733521832224,-494.66,8.667e-05,2]
[344507524,1733521832233,-200.0,8.793e-05,2]
[344507525,1733521832243,-492.49,8.824e-05,2]
[344507526,1733521832252,-504.7,8.838e-05,2]
[344507527,1733521832261,-14699.0,8.848e-05,2]
[344507528,1733521832271,-509.31,8.859e-05,2]
[344507529,1733521832281,-502.1,8.89e-05,2]
[344507530,1733521832291,-352.19,8.998e-05,2]
[344507531,1733521832300,-1500.0,9e-05,3]
[344507532,1733521832310,-255.0,9.04e-05,2]
[344507533,1733521832319,-1532.1,9.041e-05,2]
[344507534,1733521832329,-169.49,9.057e-05,2]
[344507535,1733521832338,-3100.0,9.1e-05,3]
[344507536,1733521832348,-645.281,9.11e-05,2]
[344507537,1733521832359,-495.48,9.11e-05,2]
[344507538,1733521832368,-495.15,9.11e-05,2]
[344507539,1733521832377,-150.65,9.178e-05,2]
[344507540,1733521832387,-4600.0,9.2e-05,3]
[344507541,1733521832396,-1000.0,9.247e-05,2]
[344507542,1733521832405,-6200.0,9.3e-05,3]
[344507543,1733521832415,-497.04,9.356e-05,2]
[344507544,1733521832424,-497.84,9.356e-05,2]
[344507545,1733521832433,-500.75,9.356e-05,2]
[344507546,1733521832443,-7700.0,9.4e-05,3]
[344507547,1733521832453,-1953.66143606,9.456e-05,2]
[344507548,1733521832463,-1262.0,9.458e-05,2]
[344507549,1733521832472,-566.0,9.458e-05,2]
[344507550,1733521832482,-2004.0,9.458e-05,2]
[344507551,1733521832491,-485.71,9.458e-05,2]
[344507552,1733521832501,-563.0,9.458e-05,2]
[344507553,1733521832510,-1893.0,9.458e-05,2]
[344507554,1733521832519,-816.0,9.458e-05,2]
[344507555,1733521832529,-1252.0,9.458e-05,2]
[344507556,1733521832538,-3761.0,9.458e-05,2]
[344507557,1733521832548,-973.0,9.458e-05,2]
[344507559,1733521832558,-3529.0,9.458e-05,2]
[344507560,1733521832568,-535.0,9.458e-05,2]
[344507561,1733521832577,-150.0,9.458e-05,2]
[344507562,1733521832586,-1198.212,9.458e-05,2]
[344507563,1733521832600,-2522.735,9.458e-05,2]
[344507564,1733521832609,-157.668,9.458e-05,2]
[344507565,1733521832618,-2500.0,9.489e-05,2]
[344507566,1733521832628,-2500.0,9.489e-05,2]
[344507567,1733521832638,-166.61847041,9.499e-05,2]
[344507568,1733521832648,-166.61847036,9.499e-05,2]
[344507569,1733521832657,-166.61847036,9.499e-05,2]
[344507570,1733521832666,-166.61847036,9.499e-05,2]
[344507571,1733521832678,-166.61847036,9.499e-05,2]
[344507572,1733521832688,-166.61847036,9.499e-05,2]
[344507573,1733521832697,-166.61847036,9.499e-05,2]
[344507574,1733521832707,-166.61847036,9.499e-05,2]
[344507575,1733521832718,-1612.21426512,9.5e-05,2]
[344507576,1733521832728,-1500.0,9.5e-05,3]
[344507577,1733521832737,-1000.0,9.5e-05,2]
[344507578,1733521832747,-441.72,9.521e-05,2]
[344507579,1733521832756,-823.09,9.588e-05,2]
[344507580,1733521832767,-365.25932048,9.588e-05,2]
[344507581,1733521832776,-222.52786676,9.588e-05,2]
[344507582,1733521832785,-681.0,9.589e-05,2]
[344507583,1733521832796,-124965.27853504,9.589e-05,2]
[344507584,1733521833140,-453.42859842,9.589e-05,2]
[344507585,1733521833152,-388.59141856,9.589e-05,2]
[344507586,1733521833271,-14773.44548408,9.589e-05,2]
[344507587,1733521833287,-613.54785604,9.589e-05,2]
[344507588,1733521833306,-2635.42692694,9.589e-05,2]
[344507591,1733521837501,-395.1459944,9.563e-05,2]
[344507592,1733521837521,-104.8540056,9.563e-05,2]
[344507593,1733521837531,-2150.45690108,9.589e-05,2]
[344507594,1733521837653,-3127.61088716,9.589e-05,2]
[344507600,1733521837922,-38435.07258727,9.589e-05,2]
[344507602,1733521837933,-98493.00000001,9.589e-05,2]
[344507609,1733521837986,-96282.94434693,9.589e-05,2]
[344507611,1733521837995,-27421.14231036,9.589e-05,2]
[344507613,1733521838004,-211.61641673,9.589e-05,2]
[344507615,1733521838014,-500.0,9.589e-05,2]
[344507617,1733521838023,-500.0,9.589e-05,2]
[344507618,1733521838032,-500.0,9.589e-05,2]
[344507620,1733521838042,-500.0,9.589e-05,2]
[344507622,1733521838058,-500.0,9.589e-05,2]
[344507623,1733521838067,-500.0,9.589e-05,2]
[344507624,1733521838077,-500.0,9.589e-05,2]
[344507625,1733521838087,-500.0,9.589e-05,2]
[344507626,1733521838096,-428.62818179,9.589e-05,2]
[344507627,1733521838106,-500.0,9.589e-05,2]
[344507628,1733521838115,-550.72570865,9.589e-05,2]
[344507629,1733521838124,-500.0,9.589e-05,2]
[344507630,1733521838133,-500.0,9.589e-05,2]
[344507631,1733521838142,-500.0,9.589e-05,2]
[344507632,1733521838151,-500.0,9.589e-05,2]
[344507633,1733521838161,-500.0,9.589e-05,2]
[344507634,1733521838170,-500.0,9.589e-05,2]
[344507635,1733521838179,-500.0,9.589e-05,2]
[344507636,1733521838189,-500.0,9.589e-05,2]
[344507637,1733521838198,-500.0,9.589e-05,2]
[344507638,1733521838207,-500.0,9.589e-05,2]
[344507639,1733521838216,-500.0,9.589e-05,2]
[344507640,1733521838226,-500.0,9.589e-05,2]
[344507641,1733521838235,-500.0,9.589e-05,2]
[344507642,1733521838244,-500.0,9.589e-05,2]
[344507643,1733521838253,-500.0,9.589e-05,2]
[344507644,1733521838262,-500.0,9.589e-05,2]
[344507645,1733521838271,-500.0,9.589e-05,2]
[344507646,1733521838280,-500.0,9.589e-05,2]
[344507647,1733521838289,-500.0,9.589e-05,2]
[344507648,1733521838302,-500.0,9.589e-05,2]
[344507649,1733521838311,-500.0,9.589e-05,2]
[344507650,1733521838320,-500.0,9.589e-05,2]
[344507651,1733521838329,-500.0,9.589e-05,2]
[344507652,1733521838338,-500.0,9.589e-05,2]
[344507653,1733521838347,-500.0,9.589e-05,2]
[344507654,1733521838357,-500.0,9.589e-05,2]
[344507655,1733521838366,-500.0,9.589e-05,2]
[344507656,1733521838375,-500.0,9.589e-05,2]
[344507657,1733521838384,-500.0,9.589e-05,2]
[344507658,1733521838392,-178.78676131,9.589e-05,2]
[344507659,1733521838402,-500.0,9.589e-05,2]
[344507660,1733521838412,-500.0,9.589e-05,2]
[344507661,1733521838421,-188.02413725,9.589e-05,2]
[344507662,1733521838431,-973.7,9.589e-05,2]
[344507663,1733521838440,-973.7,9.589e-05,2]
[344507664,1733521838450,-973.7,9.589e-05,2]
[344507665,1733521838459,-973.7,9.589e-05,2]
[344507666,1733521838468,-500.0,9.589e-05,2]
[344507667,1733521838478,-973.7,9.589e-05,2]
[344507668,1733521838487,-500.0,9.589e-05,2]
[344507669,1733521838496,-973.7,9.589e-05,2]
[344507670,1733521838505,-500.0,9.589e-05,2]
[344507671,1733521838514,-973.7,9.589e-05,2]
[344507672,1733521838524,-500.0,9.589e-05,2]
[344507673,1733521838533,-973.7,9.589e-05,2]
[344507674,1733521838543,-343.16,9.589e-05,2]
[344507675,1733521838554,-973.7,9.589e-05,2]
[344507676,1733521838564,-973.7,9.589e-05,2]
[344507677,1733521838575,-973.7,9.589e-05,2]
[344507678,1733521838586,-973.7,9.589e-05,2]
[344507679,1733521838598,-973.7,9.589e-05,2]
[344507680,1733521838609,-973.7,9.589e-05,2]
[344507681,1733521838619,-973.7,9.589e-05,2]
[344507682,1733521838628,-973.7,9.589e-05,2]
[344507683,1733521838638,-973.7,9.589e-05,2]
[344507684,1733521838648,-973.7,9.589e-05,2]
[344507685,1733521838658,-973.7,9.589e-05,2]
[344507686,1733521838668,-973.7,9.589e-05,2]
[344507687,1733521838679,-973.7,9.589e-05,2]
[344507688,1733521838691,-973.7,9.589e-05,2]
[344507689,1733521838699,-500.0,9.589e-05,2]
[344507690,1733521838709,-973.7,9.589e-05,2]
[344507691,1733521838718,-973.89239699,9.589e-05,2]
[344507692,1733521838729,-500.0,9.589e-05,2]
[344507693,1733521838738,-500.0,9.589e-05,2]
[344507694,1733521838748,-500.0,9.589e-05,2]
[344507695,1733521838758,-500.0,9.589e-05,2]
[344507696,1733521838769,-500.0,9.589e-05,2]
[344507697,1733521838779,-500.0,9.589e-05,2]
[344507698,1733521838788,-500.0,9.589e-05,2]
[344507699,1733521838799,-500.0,9.589e-05,2]
[344507700,1733521838809,-500.0,9.589e-05,2]
[344507701,1733521838819,-500.0,9.589e-05,2]
[344507702,1733521838828,-500.0,9.589e-05,2]
[344507703,1733521838838,-500.0,9.589e-05,2]
[344507704,1733521838847,-500.0,9.589e-05,2]
[344507705,1733521838856,-500.0,9.589e-05,2]
[344507706,1733521838866,-500.0,9.589e-05,2]
[344507707,1733521838876,-500.0,9.589e-05,2]
[344507708,1733521838886,-500.0,9.589e-05,2]
[344507709,1733521838895,-500.0,9.589e-05,2]
[344507710,1733521838905,-500.0,9.589e-05,2]
[344507711,1733521838915,-500.0,9.589e-05,2]
[344507712,1733521838924,-500.0,9.589e-05,2]
[344507713,1733521838933,-170.9177229,9.589e-05,2]
[344507714,1733521838943,-500.0,9.589e-05,2]
[344507715,1733521838953,-500.0,9.589e-05,2]
[344507716,1733521838962,-500.0,9.589e-05,2]
[344507717,1733521838972,-250.175157,9.589e-05,2]
[344507718,1733521838982,-500.0,9.589e-05,2]
[344507719,1733521838992,-500.0,9.589e-05,2]
[344507720,1733521839002,-500.0,9.589e-05,2]
[344507721,1733521839011,-500.0,9.589e-05,2]
[344507722,1733521839022,-877.11,9.589e-05,2]
[344507723,1733521839031,-500.0,9.589e-05,2]
[344507724,1733521839042,-877.11,9.589e-05,2]
[344507725,1733521839054,-877.11,9.589e-05,2]
[344507726,1733521839063,-877.11,9.589e-05,2]
[344507727,1733521839073,-877.11,9.589e-05,2]
[344507728,1733521839083,-877.11,9.589e-05,2]
[344507729,1733521839093,-877.11,9.589e-05,2]
[344507730,1733521839103,-877.11,9.589e-05,2]
[344507731,1733521839113,-877.11,9.589e-05,2]
[344507732,1733521839123,-877.11,9.589e-05,2]
[344507733,1733521839133,-877.11,9.589e-05,2]
[344507734,1733521839143,-877.11,9.589e-05,2]
[344507735,1733521839153,-877.11,9.589e-05,2]
[344507736,1733521839162,-877.11,9.589e-05,2]
[344507737,1733521839171,-877.11,9.589e-05,2]
[344507738,1733521839182,-877.11,9.589e-05,2]
[344507739,1733521839191,-500.0,9.589e-05,2]
[344507740,1733521839201,-500.0,9.589e-05,2]
[344507741,1733521839211,-500.0,9.589e-05,2]
[344507742,1733521839220,-877.11,9.589e-05,2]
[344507743,1733521839230,-500.0,9.589e-05,2]
[344507744,1733521839240,-877.11,9.589e-05,2]
[344507745,1733521839250,-500.0,9.589e-05,2]
[344507746,1733521839260,-877.11,9.589e-05,2]
[344507747,1733521839270,-530.77889073,9.589e-05,2]
[344507748,1733521839280,-877.11,9.589e-05,2]
[344507749,1733521839289,-877.11,9.589e-05,2]
[344507750,1733521839301,-877.11,9.589e-05,2]
[344507751,1733521839310,-877.11,9.589e-05,2]
[344507752,1733521839319,-877.21176205,9.589e-05,2]
[344507753,1733521839329,-464.25432971,9.589e-05,2]
[344507754,1733521839339,-500.0,9.589e-05,2]
[344507755,1733521839348,-500.0,9.589e-05,2]
[344507756,1733521839358,-500.0,9.589e-05,2]
[344507757,1733521839367,-500.0,9.589e-05,2]
[344507758,1733521839376,-500.0,9.589e-05,2]
[344507759,1733521839386,-500.0,9.589e-05,2]
[344507760,1733521839395,-500.0,9.589e-05,2]
[344507761,1733521839405,-500.0,9.589e-05,2]
[344507762,1733521839415,-500.0,9.589e-05,2]
[344507763,1733521839425,-500.0,9.589e-05,2]
[344507764,1733521839435,-500.0,9.589e-05,2]
[344507765,1733521839445,-500.0,9.589e-05,2]
[344507767,1733521839455,-549.96,9.589e-05,2]
[344507768,1733521839464,-500.0,9.589e-05,2]
[344507769,1733521839474,-549.96,9.589e-05,2]
[344507770,1733521839484,-500.0,9.589e-05,2]
[344507771,1733521839493,-549.96,9.589e-05,2]
[344507772,1733521839503,-549.96,9.589e-05,2]
[344507773,1733521839513,-485.78202554,9.589e-05,2]
[344507774,1733521839523,-549.96,9.589e-05,2]
[344507775,1733521839535,-549.96,9.589e-05,2]
[344507776,1733521839545,-549.96,9.589e-05,2]
[344507777,1733521839557,-549.96,9.589e-05,2]
[344507778,1733521839566,-549.96,9.589e-05,2]
[344507779,1733521839575,-549.96,9.589e-05,2]
[344507780,1733521839587,-549.96,9.589e-05,2]
[344507781,1733521839600,-500.0,9.589e-05,2]
[344507782,1733521839609,-549.96,9.589e-05,2]
[344507783,1733521839619,-500.0,9.589e-05,2]
[344507784,1733521839628,-549.96,9.589e-05,2]
[344507785,1733521839638,-500.0,9.589e-05,2]
[344507786,1733521839648,-549.96,9.589e-05,2]
[344507787,1733521839658,-500.0,9.589e-05,2]
[344507788,1733521839669,-549.96,9.589e-05,2]
[344507789,1733521839680,-500.0,9.589e-05,2]
[344507790,1733521839690,-500.0,9.589e-05,2]
[344507791,1733521839699,-549.96,9.589e-05,2]
[344507792,1733521839709,-500.0,9.589e-05,2]
[344507793,1733521839719,-549.96,9.589e-05,2]
[344507796,1733521840018,-549.96,9.589e-05,2]
[344507797,1733521840028,-549.96,9.589e-05,2]
[344507798,1733521840038,-549.96,9.589e-05,2]
[344507799,1733521840051,-549.96,9.589e-05,2]
[344507800,1733521840062,-549.96,9.589e-05,2]
[344507801,1733521840071,-549.96,9.589e-05,2]
[344507802,1733521840080,-500.0,9.589e-05,2]
[344507803,1733521840089,-550.08170045,9.589e-05,2]
[344507804,1733521840098,-843.78,9.589e-05,2]
[344507805,1733521840108,-843.78,9.589e-05,2]
[344507806,1733521840118,-582.74,9.589e-05,2]
[344507807,1733521840128,-843.78,9.589e-05,2]
[344507808,1733521840138,-582.74,9.589e-05,2]
[344507809,1733521840147,-843.78,9.589e-05,2]
[344507810,1733521840158,-582.74,9.589e-05,2]
[344507811,1733521840167,-500.0,9.589e-05,2]
[344507812,1733521840177,-843.78,9.589e-05,2]
[344507813,1733521840186,-582.74,9.589e-05,2]
[344507814,1733521840196,-500.0,9.589e-05,2]
[344507815,1733521840205,-843.78,9.589e-05,2]
[344507816,1733521840215,-582.74,9.589e-05,2]
[344507817,1733521840224,-500.0,9.589e-05,2]
[344507818,1733521840234,-843.78,9.589e-05,2]
[344507819,1733521840243,-582.74,9.589e-05,2]
[344507820,1733521840253,-262.46232045,9.589e-05,2]
[344507821,1733521840981,-237.53767955,9.589e-05,2]
[344507822,1733521840990,-681.65232045,9.589e-05,2]
[344507823,1733521841331,-582.74,9.589e-05,2]
[344507824,1733521841341,-500.0,9.589e-05,2]
[344507825,1733521841351,-582.74,9.589e-05,2]
[344507826,1733521841361,-500.0,9.589e-05,2]
[344507827,1733521841370,-582.74,9.589e-05,2]
[344507828,1733521841379,-500.0,9.589e-05,2]
[344507829,1733521841388,-582.74,9.589e-05,2]
[344507830,1733521841398,-564.07399312,9.589e-05,2]
[344507831,1733521841407,-582.74,9.589e-05,2]
[344507832,1733521841417,-582.74,9.589e-05,2]
[344507833,1733521841427,-582.74,9.589e-05,2]
[344507834,1733521841436,-582.74,9.589e-05,2]
[344507835,1733521841445,-582.74,9.589e-05,2]
[344507836,1733521841455,-582.74,9.589e-05,2]
[344507837,1733521841464,-582.74,9.589e-05,2]
[344507838,1733521841475,-582.74,9.589e-05,2]
[344507839,1733521841484,-582.74,9.589e-05,2]
[344507840,1733521841493,-582.74,9.589e-05,2]
[344507841,1733521841503,-582.74,9.589e-05,2]
[344507842,1733521841513,-582.74,9.589e-05,2]
[344507843,1733521841522,-582.74,9.589e-05,2]
[344507844,1733521841531,-582.78822524,9.589e-05,2]
[344507845,1733521841541,-500.0,9.589e-05,2]
[344507846,1733521841551,-265.17360741,9.589e-05,2]
[344507847,1733521841561,-500.0,9.589e-05,2]
[344507848,1733521841570,-533.51,9.589e-05,2]
[344507849,1733521841579,-500.0,9.589e-05,2]
[344507850,1733521841590,-533.51,9.589e-05,2]
[344507851,1733521841602,-500.0,9.589e-05,2]
[344507852,1733521841612,-533.51,9.589e-05,2]
[344507853,1733521841622,-500.0,9.589e-05,2]
[344507854,1733521841632,-533.51,9.589e-05,2]
[344507855,1733521841644,-500.0,9.589e-05,2]
[344507856,1733521841653,-533.51,9.589e-05,2]
[344507857,1733521841663,-500.0,9.589e-05,2]
[344507858,1733521841673,-533.51,9.589e-05,2]